[Event "*** Titled Tuesday Blitz"]
[Site "Chess.com"]
[Date "2019.01.01"]
[Round "5"]
[White "Karina_Oparina"]
[Black "yobdc"]
[Result "0-1"]
[WhiteElo "2046"]
[BlackElo "2137"]
[TimeControl "180+2"]
[EndTime "14:07:13 PST"]
[Termination "yobdc won by resignation"]

1. Nf3 {[%clk 0:03:00.3]} 1... d5 {[%clk 0:03:00.2]} 2. c4 {[%clk 0:02:59.9]}
2... d4 {[%clk 0:03:00.3]} 3. g3 {[%clk 0:03:00]} 3... Nc6 {[%clk 0:03:00.9]} 4.
Bg2 {[%clk 0:03:00.8]} 4... e5 {[%clk 0:03:02.1]} 5. d3 {[%clk 0:03:01.2]} 5...
Nge7 {[%clk 0:02:55.6]} 6. O-O {[%clk 0:03:01.6]} 6... Ng6 {[%clk 0:02:56.6]} 7.
Nbd2 {[%clk 0:02:58.8]} 7... h5 {[%clk 0:02:55.8]} 8. h4 {[%clk 0:02:56.9]} 8...
Bg4 {[%clk 0:02:56.1]} 9. Rb1 {[%clk 0:02:55.7]} 9... Qd7 {[%clk 0:02:54.2]} 10.
a3 {[%clk 0:02:53.3]} 10... a5 {[%clk 0:02:54.1]} 11. Ne4 {[%clk 0:02:49.3]}
11... Be7 {[%clk 0:02:50.6]} 12. Bd2 {[%clk 0:02:47.1]} 12... Bh3 {[%clk
0:02:23.7]} 13. b4 {[%clk 0:02:44.1]} 13... axb4 {[%clk 0:02:25]} 14. axb4
{[%clk 0:02:44.9]} 14... Bxg2 {[%clk 0:02:26.2]} 15. Kxg2 {[%clk 0:02:42.4]}
15... Nd8 {[%clk 0:02:19.3]} 16. b5 {[%clk 0:02:42.5]} 16... Ne6 {[%clk
0:02:20.1]} 17. Bb4 {[%clk 0:02:41.9]} 17... f5 {[%clk 0:02:16.8]} 18. Neg5
{[%clk 0:02:39.4]} 18... Bxg5 {[%clk 0:02:17.2]} 19. Nxg5 {[%clk 0:02:40]} 19...
Nxg5 {[%clk 0:02:17.9]} 20. hxg5 {[%clk 0:02:40.9]} 20... h4 {[%clk 0:02:18.4]}
21. Ra1 {[%clk 0:02:37.3]} 21... Rb8 {[%clk 0:02:09.8]} 22. Rh1 {[%clk
0:02:32.3]} 22... f4 {[%clk 0:02:09]} 23. Ra7 {[%clk 0:02:09]} 23... Qg4 {[%clk
0:01:58.5]} 24. e4 {[%clk 0:02:08.8]} 24... f3+ {[%clk 0:01:56.4]} 25. Kf1
{[%clk 0:02:04.3]} 25... hxg3 {[%clk 0:01:54.8]} 26. Rxh8+ {[%clk 0:02:02.6]}
26... Nxh8 {[%clk 0:01:56.7]} 27. fxg3 {[%clk 0:01:58.7]} 27... Qh3+ {[%clk
0:01:49.6]} 28. Ke1 {[%clk 0:01:45.6]} 28... Qg2 {[%clk 0:01:48.2]} 29. Bc5
{[%clk 0:01:23.4]} 29... f2+ {[%clk 0:01:45]} 30. Kd2 {[%clk 0:01:24.2]} 30...
f1=Q+ {[%clk 0:01:45.7]} 0-1

[Event "*** Titled Tuesday Blitz"]
[Site "Chess.com"]
[Date "2019.01.01"]
[Round "5"]
[White "talento10"]
[Black "Kazakov_Konstantin"]
[Result "0-1"]
[WhiteElo "2534"]
[BlackElo "2564"]
[TimeControl "180+2"]
[EndTime "14:07:17 PST"]
[Termination "Kazakov_Konstantin won by resignation"]

1. e4 {[%clk 0:03:01.9]} 1... e5 {[%clk 0:02:58.8]} 2. Nf3 {[%clk 0:03:02.5]}
2... Nc6 {[%clk 0:02:59.6]} 3. Bc4 {[%clk 0:03:03.4]} 3... Bc5 {[%clk
0:02:59.7]} 4. d3 {[%clk 0:03:04.8]} 4... Nf6 {[%clk 0:02:58.9]} 5. h3 {[%clk
0:03:06.3]} 5... d6 {[%clk 0:02:59.8]} 6. c3 {[%clk 0:03:07.1]} 6... Bb6 {[%clk
0:02:58]} 7. a4 {[%clk 0:03:05.7]} 7... a6 {[%clk 0:02:57.4]} 8. Nbd2 {[%clk
0:03:05.9]} 8... Qe7 {[%clk 0:02:54.5]} 9. b4 {[%clk 0:03:05.1]} 9... h6 {[%clk
0:02:53.7]} 10. Qb3 {[%clk 0:03:05]} 10... Nh5 {[%clk 0:02:42.5]} 11. Nf1 {[%clk
0:03:05.7]} 11... Be6 {[%clk 0:02:30]} 12. g3 {[%clk 0:02:58.1]} 12... O-O
{[%clk 0:02:27.5]} 13. Be3 {[%clk 0:02:55.3]} 13... Kh8 {[%clk 0:02:24.8]} 14.
Bxb6 {[%clk 0:02:51.6]} 14... cxb6 {[%clk 0:02:25.2]} 15. Ne3 {[%clk 0:02:53.3]}
15... b5 {[%clk 0:02:20.8]} 16. Bd5 {[%clk 0:02:49.7]} 16... bxa4 {[%clk
0:02:21]} 17. Rxa4 {[%clk 0:02:49.7]} 17... Qf6 {[%clk 0:02:20.5]} 18. Ke2
{[%clk 0:02:47.1]} 18... Rac8 {[%clk 0:02:12.8]} 19. Nh4 {[%clk 0:02:41.5]}
19... Ne7 {[%clk 0:02:08.3]} 20. Nhf5 {[%clk 0:02:13.9]} 20... Nxf5 {[%clk
0:01:58.1]} 21. Nxf5 {[%clk 0:02:11.8]} 21... Bxf5 {[%clk 0:01:56.8]} 22. exf5
{[%clk 0:02:13.7]} 22... Qxf5 {[%clk 0:01:57.6]} 23. Bxb7 {[%clk 0:02:15]} 23...
Rc7 {[%clk 0:01:56.5]} 24. Bxa6 {[%clk 0:02:06.2]} 24... e4 {[%clk 0:01:56.1]}
25. Ra5 {[%clk 0:02:03]} 25... Qf3+ {[%clk 0:01:56.2]} 26. Kd2 {[%clk
0:02:01.3]} 26... Qxf2+ {[%clk 0:01:55.9]} 27. Kc1 {[%clk 0:01:59.8]} 27... Nxg3
{[%clk 0:01:57.1]} 28. Qd1 {[%clk 0:01:26.7]} 28... Ne2+ {[%clk 0:01:49.3]} 0-1

[Event "*** Titled Tuesday Blitz"]
[Site "Chess.com"]
[Date "2019.01.01"]
[Round "5"]
[White "kacprekt"]
[Black "novocane"]
[Result "1-0"]
[WhiteElo "2382"]
[BlackElo "2131"]
[TimeControl "180+2"]
[EndTime "14:07:24 PST"]
[Termination "kacprekt won by resignation"]

1. d4 {[%clk 0:03:01.9]} 1... Nf6 {[%clk 0:03:00.3]} 2. c4 {[%clk 0:03:03]} 2...
e6 {[%clk 0:03:00.1]} 3. Nf3 {[%clk 0:03:04.4]} 3... d5 {[%clk 0:03:00.1]} 4.
Nc3 {[%clk 0:03:04.6]} 4... Bb4 {[%clk 0:03:00.7]} 5. cxd5 {[%clk 0:03:04.8]}
5... exd5 {[%clk 0:03:01]} 6. Bg5 {[%clk 0:03:04.3]} 6... Qd6 {[%clk 0:03:01.8]}
7. Bxf6 {[%clk 0:02:58.9]} 7... Qxf6 {[%clk 0:03:02.2]} 8. e3 {[%clk 0:02:59]}
8... O-O {[%clk 0:02:59.9]} 9. Bd3 {[%clk 0:02:59.8]} 9... c6 {[%clk 0:02:56.4]}
10. O-O {[%clk 0:02:58.8]} 10... Bg4 {[%clk 0:02:51.8]} 11. h3 {[%clk
0:02:58.7]} 11... Bh5 {[%clk 0:02:38.4]} 12. a3 {[%clk 0:02:57.9]} 12... Bd6
{[%clk 0:02:38.5]} 13. b4 {[%clk 0:02:55.6]} 13... Nd7 {[%clk 0:02:36]} 14. Na4
{[%clk 0:02:52.1]} 14... Rae8 {[%clk 0:02:10.1]} 15. Nc5 {[%clk 0:02:50.8]}
15... Nxc5 {[%clk 0:02:08]} 16. bxc5 {[%clk 0:02:52.4]} 16... Bb8 {[%clk
0:01:59.4]} 17. Rb1 {[%clk 0:02:53.8]} 17... Re7 {[%clk 0:01:57.7]} 18. Be2
{[%clk 0:02:51]} 18... Rfe8 {[%clk 0:01:45.4]} 19. Rb4 {[%clk 0:02:39]} 19...
Qh6 {[%clk 0:01:31.3]} 20. Nd2 {[%clk 0:02:32.7]} 20... Rxe3 {[%clk 0:01:06]}
21. Bxh5 {[%clk 0:02:26.7]} 21... Rd3 {[%clk 0:01:00.6]} 22. Rxb7 {[%clk
0:02:21]} 22... g6 {[%clk 0:01:00.4]} 23. Qb1 {[%clk 0:02:14.2]} 23... Qf4
{[%clk 0:00:24.8]} 24. Rxb8 {[%clk 0:02:14.2]} 1-0

[Event "*** Titled Tuesday Blitz"]
[Site "Chess.com"]
[Date "2019.01.01"]
[Round "5"]
[White "PrinceCharming92"]
[Black "Parhamov"]
[Result "0-1"]
[WhiteElo "2469"]
[BlackElo "2887"]
[TimeControl "180+2"]
[EndTime "14:07:30 PST"]
[Termination "Parhamov won by resignation"]

1. e4 {[%clk 0:03:01.9]} 1... e5 {[%clk 0:02:59.8]} 2. Nf3 {[%clk 0:03:02]} 2...
Nc6 {[%clk 0:03:01.3]} 3. Bc4 {[%clk 0:03:00.8]} 3... Bc5 {[%clk 0:03:02.1]} 4.
c3 {[%clk 0:03:01.3]} 4... Nf6 {[%clk 0:03:03.2]} 5. d3 {[%clk 0:03:00.6]} 5...
a6 {[%clk 0:03:03.1]} 6. Bb3 {[%clk 0:03:00.9]} 6... Ba7 {[%clk 0:03:03.3]} 7.
O-O {[%clk 0:03:01.2]} 7... h6 {[%clk 0:03:04.4]} 8. Nbd2 {[%clk 0:03:01.7]}
8... d6 {[%clk 0:03:02.6]} 9. Re1 {[%clk 0:03:02.6]} 9... O-O {[%clk 0:02:57.8]}
10. Nf1 {[%clk 0:03:03.3]} 10... Kh8 {[%clk 0:02:58.5]} 11. Ng3 {[%clk
0:03:03.3]} 11... Ng8 {[%clk 0:02:56.4]} 12. d4 {[%clk 0:03:02.6]} 12... Nge7
{[%clk 0:02:57.2]} 13. Be3 {[%clk 0:03:00.1]} 13... Bg4 {[%clk 0:02:58.1]} 14.
d5 {[%clk 0:02:38.5]} 14... Nb8 {[%clk 0:02:58.1]} 15. Bxa7 {[%clk 0:02:38.1]}
15... Rxa7 {[%clk 0:02:59.4]} 16. h3 {[%clk 0:02:39.4]} 16... Bc8 {[%clk
0:02:55.3]} 17. Qd2 {[%clk 0:02:30.1]} 17... Nd7 {[%clk 0:02:55.4]} 18. Nf5
{[%clk 0:02:15.7]} 18... Ng8 {[%clk 0:02:48.9]} 19. Bc2 {[%clk 0:01:35.1]} 19...
Ndf6 {[%clk 0:02:35.7]} 20. Nh2 {[%clk 0:01:30.2]} 20... Ra8 {[%clk 0:02:32.5]}
21. f4 {[%clk 0:01:25.3]} 21... Bxf5 {[%clk 0:02:23.2]} 22. fxe5 {[%clk
0:01:12.9]} 22... dxe5 {[%clk 0:02:22.8]} 23. exf5 {[%clk 0:01:11.5]} 23... Qd6
{[%clk 0:02:22.8]} 24. c4 {[%clk 0:01:07.2]} 24... b5 {[%clk 0:02:22.2]} 25. b3
{[%clk 0:01:06.8]} 25... Rfe8 {[%clk 0:02:22]} 26. Rad1 {[%clk 0:01:01.7]} 26...
Rad8 {[%clk 0:02:22.7]} 27. Nf3 {[%clk 0:01:01.3]} 27... c6 {[%clk 0:02:21.9]}
28. dxc6 {[%clk 0:01:00]} 28... Qxc6 {[%clk 0:02:21.7]} 29. Qxd8 {[%clk
0:00:57.7]} 29... Rxd8 {[%clk 0:02:22.7]} 30. Rxd8 {[%clk 0:00:59]} 30... Qb6+
{[%clk 0:02:23.9]} 31. c5 {[%clk 0:00:45]} 31... Qxd8 {[%clk 0:02:24.6]} 32.
Nxe5 {[%clk 0:00:46.4]} 32... Qd2 {[%clk 0:02:26]} 33. Nxf7+ {[%clk 0:00:41.7]}
33... Kh7 {[%clk 0:02:27.1]} 0-1

[Event "*** Titled Tuesday Blitz"]
[Site "Chess.com"]
[Date "2019.01.01"]
[Round "5"]
[White "abubakrtagelsir"]
[Black "maziarbagheri"]
[Result "1-0"]
[WhiteElo "2244"]
[BlackElo "2349"]
[TimeControl "180+2"]
[EndTime "14:07:38 PST"]
[Termination "abubakrtagelsir won by resignation"]

1. e4 {[%clk 0:02:57.3]} 1... e5 {[%clk 0:02:26.6]} 2. Nf3 {[%clk 0:02:56.6]}
2... Nc6 {[%clk 0:02:28]} 3. d4 {[%clk 0:02:57.2]} 3... exd4 {[%clk 0:02:28.4]}
4. Bc4 {[%clk 0:02:57.4]} 4... Nf6 {[%clk 0:02:28.8]} 5. e5 {[%clk 0:02:57]}
5... d5 {[%clk 0:02:29.9]} 6. Bb5 {[%clk 0:02:57.9]} 6... Ne4 {[%clk 0:02:31.3]}
7. Nxd4 {[%clk 0:02:57.1]} 7... Bc5 {[%clk 0:02:32.6]} 8. Be3 {[%clk 0:02:56.6]}
8... O-O {[%clk 0:02:31.8]} 9. Nxc6 {[%clk 0:02:57.6]} 9... bxc6 {[%clk
0:02:33.7]} 10. Bxc5 {[%clk 0:02:58.1]} 10... Nxc5 {[%clk 0:02:28.4]} 11. Bxc6
{[%clk 0:02:58.5]} 11... Rb8 {[%clk 0:02:28.3]} 12. O-O {[%clk 0:02:58.5]} 12...
Rxb2 {[%clk 0:02:26.6]} 13. Nc3 {[%clk 0:02:59.1]} 13... d4 {[%clk 0:02:24.7]}
14. Ne4 {[%clk 0:02:59.2]} 14... Nxe4 {[%clk 0:02:19]} 15. Bxe4 {[%clk
0:02:59.4]} 15... c5 {[%clk 0:02:19.4]} 16. f4 {[%clk 0:02:52.2]} 16... Ba6
{[%clk 0:02:11.6]} 17. Rf2 {[%clk 0:02:46.1]} 17... c4 {[%clk 0:02:05.6]} 18.
Qh5 {[%clk 0:02:44.6]} 18... g6 {[%clk 0:02:05.7]} 19. Qh6 {[%clk 0:02:42.1]}
19... d3 {[%clk 0:01:37.2]} 20. f5 {[%clk 0:02:23.4]} 20... f6 {[%clk
0:00:24.4]} 21. fxg6 {[%clk 0:02:21.1]} 21... Qe7 {[%clk 0:00:24]} 22. exf6
{[%clk 0:02:11.5]} 22... Rxf6 {[%clk 0:00:18.5]} 23. gxh7+ {[%clk 0:02:09]}
23... Kh8 {[%clk 0:00:16.2]} 1-0

[Event "*** Titled Tuesday Blitz"]
[Site "Chess.com"]
[Date "2019.01.01"]
[Round "5"]
[White "Kurai"]
[Black "Kirill_Klukin"]
[Result "0-1"]
[WhiteElo "2520"]
[BlackElo "2600"]
[TimeControl "180+2"]
[EndTime "14:07:39 PST"]
[Termination "Kirill_Klukin won by resignation"]

1. e4 {[%clk 0:03:01]} 1... c5 {[%clk 0:02:56.5]} 2. Nf3 {[%clk 0:03:01.7]} 2...
Nc6 {[%clk 0:02:57.3]} 3. d4 {[%clk 0:03:01.5]} 3... cxd4 {[%clk 0:02:58.2]} 4.
Nxd4 {[%clk 0:03:03.4]} 4... e5 {[%clk 0:02:59.6]} 5. Nb5 {[%clk 0:03:03.5]}
5... d6 {[%clk 0:03:00.4]} 6. c4 {[%clk 0:03:03.4]} 6... Be7 {[%clk 0:03:01.1]}
7. Be2 {[%clk 0:03:04.4]} 7... a6 {[%clk 0:03:00.9]} 8. N5c3 {[%clk 0:03:04.4]}
8... Be6 {[%clk 0:03:01.9]} 9. Be3 {[%clk 0:03:02.5]} 9... Bg5 {[%clk
0:02:59.5]} 10. Qd2 {[%clk 0:02:58.1]} 10... Bxe3 {[%clk 0:02:59.5]} 11. Qxe3
{[%clk 0:02:59.8]} 11... Nf6 {[%clk 0:03:01.4]} 12. O-O {[%clk 0:02:58.4]} 12...
O-O {[%clk 0:03:02.1]} 13. Nd2 {[%clk 0:02:21.7]} 13... Nd4 {[%clk 0:03:02.4]}
14. Rac1 {[%clk 0:02:18.9]} 14... Rc8 {[%clk 0:03:02.5]} 15. Bd3 {[%clk
0:01:53.7]} 15... Qa5 {[%clk 0:03:02.2]} 16. f4 {[%clk 0:01:38]} 16... Qb6
{[%clk 0:02:51.6]} 17. Kh1 {[%clk 0:01:33.6]} 17... Ng4 {[%clk 0:02:30]} 18. Qg3
{[%clk 0:01:30.3]} 18... exf4 {[%clk 0:02:30.2]} 19. Rxf4 {[%clk 0:01:30.7]}
19... Qxb2 {[%clk 0:02:30.9]} 20. Qe1 {[%clk 0:01:15.2]} 20... Ne5 {[%clk
0:02:30.4]} 21. Bf1 {[%clk 0:01:12.9]} 21... b5 {[%clk 0:02:24.4]} 22. Nd5
{[%clk 0:00:51.2]} 22... Bxd5 {[%clk 0:02:07.5]} 23. exd5 {[%clk 0:00:52.3]}
23... Nc2 {[%clk 0:02:05.7]} 24. Rb1 {[%clk 0:00:28.4]} 24... Nxe1 {[%clk
0:02:00.1]} 25. Rxb2 {[%clk 0:00:29.4]} 25... N1d3 {[%clk 0:02:01.4]} 0-1

[Event "*** Titled Tuesday Blitz"]
[Site "Chess.com"]
[Date "2019.01.01"]
[Round "5"]
[White "Jospem"]
[Black "DanielNaroditsky"]
[Result "0-1"]
[WhiteElo "2786"]
[BlackElo "2927"]
[TimeControl "180+2"]
[EndTime "14:07:42 PST"]
[Termination "DanielNaroditsky won by resignation"]

1. c4 {[%clk 0:03:01.9]} 1... e5 {[%clk 0:03:00.2]} 2. g3 {[%clk 0:03:02.2]}
2... h5 {[%clk 0:03:00.9]} 3. h4 {[%clk 0:03:00.5]} 3... Nf6 {[%clk 0:03:01.2]}
4. Bg2 {[%clk 0:03:01.7]} 4... Nc6 {[%clk 0:03:00]} 5. Nc3 {[%clk 0:03:01.2]}
5... Bc5 {[%clk 0:02:56.5]} 6. e3 {[%clk 0:03:02]} 6... a6 {[%clk 0:02:58.1]} 7.
Nge2 {[%clk 0:03:03.3]} 7... Ba7 {[%clk 0:02:59.1]} 8. d4 {[%clk 0:03:04.6]}
8... d6 {[%clk 0:02:55]} 9. Bxc6+ {[%clk 0:02:59.8]} 9... bxc6 {[%clk
0:02:55.6]} 10. dxe5 {[%clk 0:03:01.7]} 10... Ng4 {[%clk 0:02:57.3]} 11. exd6
{[%clk 0:02:53.8]} 11... cxd6 {[%clk 0:02:57.7]} 12. Nd4 {[%clk 0:02:47.3]}
12... Qf6 {[%clk 0:02:22]} 13. Qf3 {[%clk 0:02:15.9]} 13... Bxd4 {[%clk
0:01:43.1]} 14. Qxc6+ {[%clk 0:02:16.4]} 14... Kd8 {[%clk 0:01:44.8]} 15. exd4
{[%clk 0:01:11.4]} 15... Qxf2+ {[%clk 0:01:40.2]} 16. Kd1 {[%clk 0:01:10.5]}
16... Qxd4+ {[%clk 0:01:15.7]} 17. Kc2 {[%clk 0:00:40.4]} 17... Bf5+ {[%clk
0:01:15.9]} 18. Kb3 {[%clk 0:00:41.9]} 18... Rb8+ {[%clk 0:01:17.2]} 19. Ka3
{[%clk 0:00:43.4]} 19... Ne5 {[%clk 0:01:17.6]} 20. Bg5+ {[%clk 0:00:42.5]}
20... f6 {[%clk 0:01:18.3]} 21. Qd5 {[%clk 0:00:38.1]} 21... Nxc4+ {[%clk
0:01:18.2]} 22. Ka4 {[%clk 0:00:39.6]} 22... Nb6+ {[%clk 0:01:17.1]} 0-1

[Event "*** Titled Tuesday Blitz"]
[Site "Chess.com"]
[Date "2019.01.01"]
[Round "5"]
[White "aRk_iN"]
[Black "sandager"]
[Result "0-1"]
[WhiteElo "2092"]
[BlackElo "2012"]
[TimeControl "180+2"]
[EndTime "14:07:46 PST"]
[Termination "sandager won by resignation"]

1. e4 {[%clk 0:03:01.9]} 1... e5 {[%clk 0:03:00.6]} 2. Nf3 {[%clk 0:03:02.2]}
2... Nc6 {[%clk 0:03:01.4]} 3. Bb5 {[%clk 0:03:00.4]} 3... a6 {[%clk 0:03:01.3]}
4. Ba4 {[%clk 0:03:01.6]} 4... Nf6 {[%clk 0:03:02.2]} 5. O-O {[%clk 0:03:02.7]}
5... Be7 {[%clk 0:03:03.5]} 6. Re1 {[%clk 0:03:01.8]} 6... O-O {[%clk
0:03:04.6]} 7. Bxc6 {[%clk 0:02:57.4]} 7... dxc6 {[%clk 0:03:04.5]} 8. Nxe5
{[%clk 0:02:58.4]} 8... Re8 {[%clk 0:03:05]} 9. Nf3 {[%clk 0:02:37.7]} 9... Bg4
{[%clk 0:02:51.7]} 10. d3 {[%clk 0:02:38.5]} 10... Bc5 {[%clk 0:02:46.3]} 11.
Be3 {[%clk 0:02:33.2]} 11... Bxe3 {[%clk 0:02:36.6]} 12. Rxe3 {[%clk 0:02:32.5]}
12... Nxe4 {[%clk 0:02:30.8]} 13. h3 {[%clk 0:02:17.1]} 13... Bh5 {[%clk
0:02:21.7]} 14. Qe2 {[%clk 0:02:07.9]} 14... Nf6 {[%clk 0:02:21]} 15. Nbd2
{[%clk 0:02:05.2]} 15... Qd7 {[%clk 0:02:10.4]} 16. Re1 {[%clk 0:02:04.8]} 16...
h6 {[%clk 0:02:07.2]} 17. d4 {[%clk 0:01:49.3]} 17... Rxe3 {[%clk 0:02:02.9]}
18. Qxe3 {[%clk 0:01:47]} 18... Re8 {[%clk 0:02:03]} 19. Qf4 {[%clk 0:01:37.5]}
19... Rxe1+ {[%clk 0:02:00.3]} 20. Nxe1 {[%clk 0:01:39.4]} 20... Qd6 {[%clk
0:02:01]} 21. Qe3 {[%clk 0:01:26]} 21... Bg6 {[%clk 0:01:57.8]} 22. c3 {[%clk
0:01:22.6]} 22... Qd5 {[%clk 0:01:57.6]} 23. b3 {[%clk 0:01:15.1]} 23... Qa5
{[%clk 0:01:57.5]} 24. a4 {[%clk 0:01:06]} 24... Nd5 {[%clk 0:01:55.3]} 25. Qe8+
{[%clk 0:01:05.6]} 25... Kh7 {[%clk 0:01:55.3]} 26. b4 {[%clk 0:00:51.9]} 26...
Qxa4 {[%clk 0:01:55.3]} 27. Nef3 {[%clk 0:00:38.7]} 27... Qa1+ {[%clk
0:01:47.5]} 28. Kh2 {[%clk 0:00:39]} 28... Qxc3 {[%clk 0:01:46.9]} 29. h4 {[%clk
0:00:40.2]} 0-1

[Event "*** Titled Tuesday Blitz"]
[Site "Chess.com"]
[Date "2019.01.01"]
[Round "5"]
[White "Sordis"]
[Black "Iyael"]
[Result "0-1"]
[WhiteElo "2393"]
[BlackElo "2173"]
[TimeControl "180+2"]
[EndTime "14:07:47 PST"]
[Termination "Iyael won by resignation"]

1. c4 {[%clk 0:03:01.9]} 1... Nf6 {[%clk 0:02:58.2]} 2. g3 {[%clk 0:03:02.6]}
2... g6 {[%clk 0:02:58.2]} 3. Bg2 {[%clk 0:03:03.9]} 3... Bg7 {[%clk 0:02:59.4]}
4. Nc3 {[%clk 0:03:05]} 4... O-O {[%clk 0:02:59.8]} 5. d3 {[%clk 0:03:06.5]}
5... d6 {[%clk 0:03:00.6]} 6. Rb1 {[%clk 0:03:07.2]} 6... a5 {[%clk 0:03:00.5]}
7. a3 {[%clk 0:03:08.3]} 7... e5 {[%clk 0:03:01]} 8. b4 {[%clk 0:03:09.1]} 8...
axb4 {[%clk 0:03:02]} 9. axb4 {[%clk 0:03:11]} 9... c6 {[%clk 0:03:02.5]} 10. b5
{[%clk 0:03:11.8]} 10... Be6 {[%clk 0:03:02]} 11. bxc6 {[%clk 0:03:11.9]} 11...
bxc6 {[%clk 0:02:59.8]} 12. Nf3 {[%clk 0:03:12.4]} 12... h6 {[%clk 0:02:57.2]}
13. O-O {[%clk 0:03:12.6]} 13... Nbd7 {[%clk 0:02:58.3]} 14. Nd2 {[%clk
0:03:03.7]} 14... d5 {[%clk 0:02:56.7]} 15. Bb2 {[%clk 0:02:51.3]} 15... Qc7
{[%clk 0:02:52.3]} 16. Qc2 {[%clk 0:02:35.7]} 16... Rfb8 {[%clk 0:02:50.3]} 17.
Rfc1 {[%clk 0:02:36.5]} 17... Qd6 {[%clk 0:02:47.3]} 18. Qd1 {[%clk 0:02:30.6]}
18... d4 {[%clk 0:02:38.7]} 19. Nce4 {[%clk 0:02:30.1]} 19... Nxe4 {[%clk
0:02:39.4]} 20. Nxe4 {[%clk 0:02:31]} 20... Qc7 {[%clk 0:02:38.9]} 21. Nc5
{[%clk 0:02:20.7]} 21... Nxc5 {[%clk 0:02:37.7]} 22. e3 {[%clk 0:02:19.5]} 22...
Ra2 {[%clk 0:02:31.4]} 23. exd4 {[%clk 0:02:19.7]} 23... exd4 {[%clk 0:02:31.9]}
24. Rc2 {[%clk 0:02:16.9]} 24... Bf5 {[%clk 0:02:31.3]} 25. Ba1 {[%clk
0:02:13.6]} 25... Rxc2 {[%clk 0:02:29.7]} 26. Qxc2 {[%clk 0:02:14.5]} 26... Nxd3
{[%clk 0:02:26.1]} 27. Rxb8+ {[%clk 0:02:09.6]} 27... Qxb8 {[%clk 0:02:26.8]}
28. g4 {[%clk 0:02:09.4]} 28... Nb4 {[%clk 0:02:21.9]} 29. Qd1 {[%clk 0:02:04]}
29... Bc2 {[%clk 0:02:21.4]} 30. Qd2 {[%clk 0:02:01.9]} 30... d3 {[%clk
0:02:21.5]} 31. Bxg7 {[%clk 0:02:00.4]} 31... Kxg7 {[%clk 0:02:22.6]} 32. h4
{[%clk 0:02:01.4]} 32... c5 {[%clk 0:02:21.7]} 33. g5 {[%clk 0:02:00.2]} 33...
hxg5 {[%clk 0:02:21.8]} 34. hxg5 {[%clk 0:02:01.6]} 34... Qe5 {[%clk 0:02:22.9]}
35. f4 {[%clk 0:01:54.6]} 35... Qe2 {[%clk 0:02:21.2]} 36. Qc3+ {[%clk
0:01:54.4]} 36... Kg8 {[%clk 0:02:20.3]} 37. Qf6 {[%clk 0:01:32.4]} 37... Qe3+
{[%clk 0:02:16.1]} 38. Kh2 {[%clk 0:01:32.5]} 38... Qd4 {[%clk 0:02:09.7]} 39.
Qe7 {[%clk 0:01:21.6]} 39... Qxf4+ {[%clk 0:02:09.4]} 40. Kg1 {[%clk 0:01:21.7]}
40... d2 {[%clk 0:02:07.1]} 41. Qd8+ {[%clk 0:01:22.1]} 41... Kg7 {[%clk
0:02:07.5]} 42. Qxd2 {[%clk 0:01:23.7]} 42... Qxd2 {[%clk 0:02:07.2]} 0-1

[Event "*** Titled Tuesday Blitz"]
[Site "Chess.com"]
[Date "2019.01.01"]
[Round "5"]
[White "robbykevlishvili"]
[Black "x-3738459472"]
[Result "1-0"]
[WhiteElo "2785"]
[BlackElo "2534"]
[TimeControl "180+2"]
[EndTime "14:07:50 PST"]
[Termination "robbykevlishvili won by resignation"]

1. e4 {[%clk 0:03:01.9]} 1... c5 {[%clk 0:02:58.1]} 2. Nf3 {[%clk 0:03:01.8]}
2... Nc6 {[%clk 0:02:58.9]} 3. d4 {[%clk 0:03:03.2]} 3... cxd4 {[%clk
0:02:59.9]} 4. Nxd4 {[%clk 0:03:05.1]} 4... e5 {[%clk 0:03:01.4]} 5. Nb5 {[%clk
0:03:05]} 5... d6 {[%clk 0:03:02.5]} 6. c4 {[%clk 0:02:55.1]} 6... Be7 {[%clk
0:03:02]} 7. N1c3 {[%clk 0:02:55.6]} 7... a6 {[%clk 0:03:02.9]} 8. Na3 {[%clk
0:02:56.2]} 8... f5 {[%clk 0:03:04.2]} 9. exf5 {[%clk 0:02:51.7]} 9... Bxf5
{[%clk 0:03:04.5]} 10. Bd3 {[%clk 0:02:53.6]} 10... Be6 {[%clk 0:03:05.7]} 11.
Nc2 {[%clk 0:02:53.4]} 11... Nf6 {[%clk 0:03:06.2]} 12. O-O {[%clk 0:02:54.8]}
12... O-O {[%clk 0:03:07.6]} 13. Nd5 {[%clk 0:02:56.4]} 13... Kh8 {[%clk
0:03:04.9]} 14. Nxe7 {[%clk 0:02:54.2]} 14... Qxe7 {[%clk 0:03:03.6]} 15. b3
{[%clk 0:02:55.7]} 15... e4 {[%clk 0:03:01.2]} 16. Be2 {[%clk 0:02:56]} 16...
Ne5 {[%clk 0:03:02.1]} 17. Bb2 {[%clk 0:02:55.8]} 17... Rad8 {[%clk 0:02:57.4]}
18. h3 {[%clk 0:02:42.7]} 18... Qf7 {[%clk 0:02:48.1]} 19. Ne3 {[%clk
0:02:39.4]} 19... Qg6 {[%clk 0:02:47.9]} 20. Kh2 {[%clk 0:02:36.2]} 20... Nd3
{[%clk 0:02:39.2]} 21. Bxd3 {[%clk 0:02:37.2]} 21... exd3 {[%clk 0:02:41.1]} 22.
Bxf6 {[%clk 0:02:36.7]} 22... Rxf6 {[%clk 0:02:39.3]} 23. Qd2 {[%clk 0:02:37.2]}
23... Qh5 {[%clk 0:02:11.6]} 24. Qxd3 {[%clk 0:02:35.7]} 24... Bxh3 {[%clk
0:02:09.1]} 25. gxh3 {[%clk 0:02:18.8]} 25... Rf3 {[%clk 0:02:09.2]} 26. Qd5
{[%clk 0:02:18.2]} 26... Rxh3+ {[%clk 0:02:03.2]} 27. Kg2 {[%clk 0:02:16]} 27...
Rh2+ {[%clk 0:02:00.1]} 28. Kg1 {[%clk 0:02:17]} 28... Qh3 {[%clk 0:01:44.4]}
29. Ng4 {[%clk 0:02:11]} 29... Qxg4+ {[%clk 0:01:40.9]} 30. Kxh2 {[%clk
0:02:12]} 30... Rf8 {[%clk 0:01:40.1]} 31. Rae1 {[%clk 0:02:09]} 31... h6 {[%clk
0:01:37.8]} 32. Re3 {[%clk 0:02:06.1]} 32... Rf5 {[%clk 0:01:36]} 33. Qg2 {[%clk
0:02:04.5]} 33... Qf4+ {[%clk 0:01:24.6]} 34. Kg1 {[%clk 0:02:02.5]} 34... h5
{[%clk 0:01:23.8]} 35. Rg3 {[%clk 0:01:58]} 35... g5 {[%clk 0:01:23]} 36. Re1
{[%clk 0:01:56.7]} 36... g4 {[%clk 0:01:17.1]} 37. Rge3 {[%clk 0:01:55.3]} 37...
h4 {[%clk 0:01:14.5]} 38. Re8+ {[%clk 0:01:55.5]} 38... Kg7 {[%clk 0:01:13.8]}
39. R8e4 {[%clk 0:01:54.5]} 1-0